Cogmind - Beta 13 @@@ ROGUE MODE // 2024.04.20 @ 01:04:43 Player: sick0r Result: Destroyed by PB-1CM(R) with Subdweller Laser Performance ------------- Evolutions (0) 0 Regions Visited (2) 400 Robots Destroyed (29) 145 Value Destroyed (661) 661 Prototype IDs (2) 40 Alien Tech Used (0) 0 Bonus (-26) -26 TOTAL SCORE: 1220 Bonus ------- Friendly Fire -26 Cogmind --------- Core Integrity 0/250 Matter 219/300 Energy 200/200 System Corruption 0% Temperature Cool (6) Movement Rolling (105) Location -10/Subcaves Parts ------- > --- POWER (1) -------- Subdweller Power Source > --- PROPULSION (2) --- Compact Wheel Subdweller Monowheel > --- UTILITY (2) ------ Large Storage Unit Hacking Suite > --- WEAPON (2) ------- Grenade Launcher Subdweller Shrapnel Launcher > --- INVENTORY (15) --- Subdweller Power Source Light Nuclear Core Compact Wheel Compact Wheel Disposable Heat Sink Large Storage Unit High-capacity Battery (250) Signal Interpreter V3-11A's Pendant Particle Gun Assault Rifle Subdweller Machine Gun Light Cannon Datajack Peak State ------------ > --- POWER ------------ Subdweller Power Source > --- PROPULSION ------- Subdweller Monowheel Subdweller Monowheel > --- UTILITY ---------- Large Storage Unit Hacking Suite > --- WEAPON ----------- Light Cannon Subdweller Shrapnel Launcher > --- INVENTORY -------- Ion Engine Light Nuclear Core Compact Wheel Large Storage Unit High-capacity Battery Signal Interpreter V3-11A's Pendant Particle Gun Assault Rifle Heavy Assault Rifle Grenade Launcher Datajack Scrap Shield Fragment Scrap Shield Fragment [Rating: 15] Favorites ----------- Power Ion Engine Engine Ion Engine Propulsion Compact Wheel Treads Light Treads Leg Aluminum Leg Wheel Compact Wheel Utility Large Storage Unit Storage Large Storage Unit Hackware Hacking Suite Weapon Light Cannon Energy Gun Medium Laser Ballistic Gun Assault Rifle Ballistic Cannon Light Cannon Launcher Subdweller Shrapnel Launcher Special Melee Weapon Datajack Build | -11 -10 -10 ------- Run | Yrd Mat Sub Slots Evolved . | . . . Power . | . . . Propulsion . | . . . Utility . | . . . Weapon . | . . . Parts Attached 47 | 5 27 15 Power 3 | 1 1 1 Engine 3 | 1 1 1 Core . | . . . Reactor . | . . . Propulsion 17 | 3 9 5 Treads 3 | 1 2 . Leg 3 | 1 2 . Wheel 11 | 1 5 5 Hover . | . . . Flight . | . . . Utility 3 | 1 2 . Device . | . . . Storage 2 | 1 1 . Processor . | . . . Hackware 1 | . 1 . Protection . | . . . Artifact . | . . . Weapon 24 | . 15 9 Energy Gun 3 | . 2 1 Energy Cannon . | . . . Ballistic Gun 6 | . 4 2 Ballistic Cannon 6 | . 4 2 Launcher 4 | . 1 3 Special Weapon . | . . . Impact Weapon . | . . . Slashing Weapon . | . . . Piercing Weapon . | . . . Special Melee Weapon 5 | . 4 1 Unidentified Prototypes . | . . . Parts Lost 3 | . 2 1 Power 1 | . 1 . Propulsion 2 | . 1 1 Utility . | . . . Weapon . | . . . Highest Loss Streak 1 | . 1 1 To Critical Strikes . | . . . Average Slot Usage (%) 96 | . 95 97 Engine 14 | . 14 14 Leg 2 | . 4 . Wheel 25 | . 23 28 Storage 15 | . 17 14 Hackware 12 | . 10 14 Energy Gun 3 | . 4 2 Ballistic Gun 9 | . 12 5 Ballistic Cannon 9 | . 5 13 Launcher 2 | . . 4 Special Melee Weapon 1 | . 1 . Naked Turns . | . . . Heaviest Build 36 | 8 33 36 Greatest Support 40 | 20 26 40 Greatest Overweight (x) 3 | 1 3 1 Average Overweight (x) . | . 1 . Largest Inventory Capacity 15 | 8 15 15 Average Capacity 14 | 7 14 15 Most Carried 15 | 8 15 15 Average Carried 13 | 5 13 13 Final Capacity 15 | 8 15 15 Final Carried 14 | 8 14 14 Class Distribution -------------------- 94% | Mutant 5% | Scavenger-Mutant Dominant Class ---------------- Mutant | -10/Materials Mutant | -10/Subcaves Resources | -11 -10 -10 ----------- Run | Yrd Mat Sub Matter Collected 1119 | 250 497 372 Remotely . | . . . Salvage Created 935 | . 688 247 Parts 63 | . 49 14 Haulers Intercepted . | . . . Recyclers Shooed 1 | . 1 . Parts Field Recycled . | . . . Retrieved Matter . | . . . Parts Self-Destructed 13 | . . 13 Prevented . | . . . Kills | -11 -10 -10 ------- Run | Yrd Mat Sub Combat Hostiles Destroyed 20 | . 13 7 Guns 13 | . 11 2 Cannons 7 | . 2 5 Classes Destroyed 8 | . 6 2 Worker 2 | . 2 . Recycler 2 | . 2 . Operator 2 | . 2 . Watcher 3 | . 3 . Swarmer 7 | . 6 1 Grunt 9 | . 7 2 Sentry 1 | . . 1 Subdweller 3 | . . 3 Best Kill Streak 9 | . 9 2 Combat Bots Only 5 | . 5 2 Max Kills in Single Turn 1 | . 1 1 Gunslinging . | . . . Exploded . | . . . Melee . | . . . Uniques/NPCs Destroyed . | . . . Combat | -11 -10 -10 -------- Run | Yrd Mat Sub Hostile Shots Fired 96 | . 60 36 Missed 31 | . 16 15 Damage Taken 967 | . 438 529 Core 251 | . 66 185 Absorbed by Shields . | . . . Core Remaining (%) 100 | 100 . . Volleys Fired 101 | . 69 32 Largest 2 | . 2 2 Hottest 90 | . 90 85 Shots Fired 177 | . 122 55 Gun 140 | . 116 24 Cannon 30 | . 6 24 Launcher 7 | . . 7 Special . | . . . Kinetic 165 | . 120 45 Thermal 12 | . 2 10 Explosive . | . . . Electromagnetic . | . . . Robot Hit Streak 8 | . 8 5 Robot Miss Streak 9 | . 9 3 Penetration Max . | . . . Secondary Targets 1 | . 1 . Max Gunslinging Chain 1 | . 1 . Shots Hit Robots 94 | . 64 30 Core Hits 47 | . 36 11 Critical Kills . | . . . Critical Parts Destroyed 1 | . 1 . Critical Strikes 3 | . 1 2 Destroy 2 | . 1 1 Blast 1 | . . 1 Melee Attacks 14 | . 9 5 Impact . | . . . Slashing . | . . . Piercing . | . . . Sneak Attacks . | . . . Combat Hostiles . | . . . Follow-up Attacks . | . . . Damage Inflicted 1230 | . 721 509 Guns 908 | . 684 224 Cannons 256 | . 37 219 Explosions 66 | . . 66 Melee . | . . . Ramming . | . . . Kinetic 1154 | . 709 445 Thermal 76 | . 12 64 Explosive . | . . . Electromagnetic . | . . . Impact . | . . . Slashing . | . . . Piercing . | . . . Highest Corruption . | . . . Average Corruption . | . . . Corruption Purged . | . . . Corruption Blocked . | . . . Overload Shots . | . . . Overflow Damage . | . . . Projectiles . | . . . Explosions . | . . . Melee . | . . . Knockbacks 1 | . . 1 Impact . | . . . Kinetic 1 | . . 1 Secondary . | . . . Self-Inflicted Damage . | . . . Shots . | . . . Rammed . | . . . Targets Rammed . | . . . Kicked . | . . . Crushed . | . . . Highest Temperature 30 | . 30 . Average Temperature 7 | . 7 . Received Heat Transfer 243 | . 150 93 Siege Activations . | . . . Robots Corrupted . | . . . Combat Hostiles . | . . . Parts Fried . | . . . Impact Corruptions . | . . . Robots Melted . | . . . Combat Hostiles . | . . . Parts Melted . | . . . Heat Transferred 210 | . 25 185 Parts Sabotaged . | . . . Parts Stolen . | . . . Parts Stripped . | . . . Power Chain Reactions . | . . . Alert | -11 -10 -10 ------- Run | Yrd Mat Sub Peak Influence 249 | . 249 . Initial . | . . . Average 89 | . 92 . Maximum Alert Level 1 | . 1 . Low Security (%) 94 | 100 94 . Level 1 5 | . 5 . Level 2 . | . . . Level 3 . | . . . Level 4 . | . . . Level 5 . | . . . High Security . | . . . Max Security . | . . . Squads Dispatched 2 | . 2 . Investigation . | . . . Extermination . | . . . Reinforcement 2 | . 2 . Assault . | . . . Garrison . | . . . Intercept . | . . . Searches Triggered . | . . . Construction Impeded . | . . . Haulers Reinforced . | . . . Active Scanning Responses . | . . . Cargo Convoy Interrupts . | . . . Stealth | -11 -10 -10 --------- Run | Yrd Mat Sub Distress Signals 2 | . 2 . Communications Jammed . | . . . Distress Signals . | . . . Times Spotted 46 | . 36 10 Peak Tracking Total 8 | . 8 3 Tactical Retreats 10 | . 9 1 Traps | -11 -10 -10 ------- Run | Yrd Mat Sub Traps Triggered 4 | . . 4 Indirectly . | . . . Trap Hack Attempts 43 | . 43 . Triggered . | . . . Disarmed . | . . . Reprogrammed 7 | . 7 . Reused 2 | . 2 . Traps Extracted . | . . . Installed . | . . . Triggered 2 | . 2 . Machines | -11 -10 -10 ---------- Run | Yrd Mat Sub Machines Disabled . | . . . Max in Single Turn . | . . . Machines Repaired . | . . . Machines Dismantled . | . . . Machines Sabotaged . | . . . Overloaded Fab Kills . | . . . Hacking | -11 -10 -10 --------- Run | Yrd Mat Sub Machines Accessed 6 | . 6 . Terminals 6 | . 6 . Fabricators . | . . . Repair Stations . | . . . Recycling Units . | . . . Scanalyzers . | . . . Garrison Access . | . . . Total Hacks 14 | . 14 . Successful 6 | . 6 . Failed 8 | . 8 . Catastrophic 2 | . 2 . Database Lockouts . | . . . Manual . | . . . Terminals 14 | . 14 . Fabricators . | . . . Repair Stations . | . . . Recycling Units . | . . . Scanalyzers . | . . . Garrison Access . | . . . Terminal Hacks 6 | . 6 . Prototype ID Bank 1 | . 1 . Alert Level 1 | . 1 . Locate Traps 3 | . 3 . Zone Layout 1 | . 1 . Fabricator Hacks . | . . . Repair Station Hacks . | . . . Recycling Unit Hacks . | . . . Scanalyzer . | . . . Garrison Access Hacks . | . . . Unauthorized Hacks . | . . . Terminals . | . . . Fabricators . | . . . Repair Stations . | . . . Recycling Units . | . . . Scanalyzers . | . . . Garrison Access . | . . . Data Cores Recovered . | . . . Used . | . . . Hacking Detections 4 | . 4 . Full Trace Events . | . . . Feedback Events . | . . . Feedback Blocked . | . . . Robot Schematics Acquired . | . . . Robots Built . | . . . Authchips . | . . . Time . | . . . Total Robot Build Rating . | . . . Part Schematics Acquired . | . . . Parts Built . | . . . Authchips . | . . . Time . | . . . Total Part Build Rating . | . . . Parts Repaired . | . . . Time . | . . . Parts Recycled . | . . . Recycled Matter . | . . . Retrieved Matter . | . . . Retrieved Components . | . . . Parts Scanalyzed . | . . . Part Schematics Acquired . | . . . Parts Damaged . | . . . Bothacking | -11 -10 -10 ------------ Run | Yrd Mat Sub Used RIF Installer . | . . . Robots Hacked 1 | . 1 . Non-combat 1 | . 1 . Combat . | . . . Robot Hacks Applied 1 | . 1 . parse_system 1 | . 1 . Relay Couplers Released . | . . . Fabnet Peak Effective % . | . . . Robots Rewired . | . . . Allies Hacked . | . . . Hacks Repelled . | . . . Allies | -11 -10 -10 -------- Run | Yrd Mat Sub Total Allies . | . . . Largest Group . | . . . Highest-Rated Group . | . . . Highest-Rated Ally . | . . . Total Orders . | . . . Ally Attacks . | . . . Total Damage . | . . . Kills . | . . . Allies Corrupted . | . . . Allies Melted . | . . . Intel | -11 -10 -10 ------- Run | Yrd Mat Sub Robot Analysis Total . | . . . Derelict Logs Recovered . | . . . Drone Launches . | . . . Drone Recoveries . | . . . Exploration | -11 -10 -10 ------------- Run | Yrd Mat Sub Turns Passed 3984 | 65 2014 1905 Spaces Moved 2625 | 42 935 1648 Core 8 | 8 . . Treads 9 | 9 . . Legs 157 | 22 135 . Wheels 2451 | 3 800 1648 Hover . | . . . Flight . | . . . Fastest Speed 50 | 50 95 100 Average Speed 110 | 115 121 104 Slowest Speed 330 | 160 330 120 Overloaded Moves . | . . . Propulsion Burnouts . | . . . Robots Hopped . | . . . Cave-ins Triggered . | . . . Exploration Rate (%) 53 | 4 100 56 Regions Visited 2 Branch Regions 1 Pre-discovered Areas 1 | . . 1 Known Exits Taken . | . . . Unknown Exits Taken 2 | 1 1 . Scrap Searched 1 | . . 1 Spaces Dug 22 | . . 22 Terrain Destroyed 115 | . . 115 Melee . | . . . Projectile . | . . . AOE 115 | . . 115 Terrain Rammed . | . . . Walls Destroyed . | . . . Machines Disabled . | . . . Actions | -11 -10 -10 --------- Run | Yrd Mat Sub Total 3518 | 58 1692 1768 Wait 625 | . 585 40 Move 2623 | 41 934 1648 Hop . | . . . Pick Up 42 | 12 17 13 Fast Attach 2 | . 1 1 Attach 14 | 4 6 4 Detach 1 | . . 1 Swap 31 | 1 20 10 Drop 22 | . 8 14 Fire 101 | . 69 32 Melee 14 | . 9 5 Ram . | . . . Kick . | . . . Crush . | . . . Escape Stasis . | . . . Rewire . | . . . Trap 43 | . 43 . Miscellaneous . | . . . Route ------- -11/Scrapyard -10/Materials (discovered 5 exits: [*Mat x3] / [*Min] / [*Sub]) -10/Subcaves History --------- Turn | Location | Event 21 | -11/Scrapyard | Discovered new exit (range 16) 66 | -11/Scrapyard | Entered Materials 318 | -10/Materials | Build established: Mutant 925 | -10/Materials | Discovered new exit (range 16) 1019 | -10/Materials | Discovered new exit (range 9) 1179 | -10/Materials | Discovered new exit (range 10) 1600 | -10/Materials | Discovered new exit (range 16) 2029 | -10/Materials | Discovered new exit (range 5) 2080 | -10/Materials | Entered Subcaves 2122 | -10/Subcaves | Learned location of Zion (-6) 2122 | -10/Subcaves | Met a Zionite searching for "candidates" 2402 | -10/Subcaves | A swath of the cavern ceiling suddenly collapsed 2436 | -10/Subcaves | Visited triangular shrine 2442 | -10/Subcaves | Found Prototype Device 2537 | -10/Subcaves | A swath of the cavern ceiling suddenly collapsed 2878 | -10/Subcaves | Core integrity fell below 50% 3872 | -10/Subcaves | Core integrity fell below 20% 3926 | -10/Subcaves | Shifting Twisted Machinery released Sub. Shrapnel Launcher 3943 | -10/Subcaves | Shifting Twisted Machinery released Sub. Optics 3944 | -10/Subcaves | Shifting Twisted Machinery released Scrap Shield 3985 | -10/Subcaves | Destroyed by PB-1CM(R) with Subdweller Laser Last Messages --------------- Acquired 4 matter. Acquired 37 matter. Acquired 3 matter. Acquired 31 matter. Triggered Piercing Trap. Spikes shoot up from the floor. Critical hit (Impale). 7I-Z8M(R) suffers critical hit (Destroy). 7I-Z8M(R) destroyed. Acquired Disposable Heat Sink. Acquired 8 matter. Acquired 2 matter. Acquired 1 matter. Sub. Shrapnel Launcher falls loose from the Twisted Machinery. Acquired Sub. Shrapnel Launcher. Sub. Optics falls loose from the Twisted Machinery. Scrap Shield falls loose from the Twisted Machinery. Map ----- +----------------------------------------------------+ | #????????????????????????????????????????????????? | | ##???????????????????????????????????????????????? | | #???????????????????????????????????????????????? | | #???????????????????????????????????????????????? | | #???????????????????????????????????????????????? | | ##???????????????????????????????????????????????? | | #????????????????????????????????????????????????? | | #????????????????????????????????????????????????? | | ?????????????????????????????????????????????????? | | #???????????????##???????????????????????????????? | | #???????????????# ???????????????????????????????? | | #???????????????? ??????????????????????????????? | | #????????????????? ?????????????????????????????? | | #?????????????????# ????????????????????????????? | | #?????????????????# ???####?????????????????????? | | #?????????????????# ??# #?????????????????????? | | ???????????????????? ? #?????????????????????? | | ????????????????????? ##????????????????????? | | ?????????????????????? # #????????????????????? | | ???????????????????????# ##????????????????????? | | ???????????????????????##R #????????????????????? | | ???????????????????????# #????????????????????? | | ??????????????????????## #????????????????????? | | ????????????????####### #????????????????????? | | ????????????????# "" #????????????????????? | | ????????????????# "" @ ##????????????????????? | | ????????????????#"""""" ##????????????????????? | | ?????????????????#""""## ##???????????????????? | | ?????????????????#""""### #???????????????????? | | ?????????????????# """"### #???????????????????? | | ?????????????????# """"### ##??????????????????? | | ?????????????????# ## ##?????????????????? | | ?????????????????## ###???????????????? | | ??????????????????# ##??????????????? | | ?????????????????## #?????????#????? | | ????????#???????##"" ;##???????? ##???? | | ???????#""????###"" ## ; ????????" #???? | | ???????""""####" " #### R;;??###??# #???? | | ?????"""""!"""" #?# #; #### ### #???? | | ???? !""" #?# #;; #???? | | ???? ##### ## ##### #?## #???? | | ???????????##?###??# #??## # #????? | | ???????????????????## ##???# ### ## ##????? | | ????????????????????## #???## # #????? | | ?????????????????????# #???# ## #??????? | | ?????????????????????## ##???## ## # ##?#??????? | | ??????????????????????# #?????#### # ####?????? | | ?????????????????????? ???????## ### #?????? | | ?????????????????????? ???????# ##????? | | ??????????????????????# ???????### ###??? | +----------------------------------------------------+ Best States ------------- Heat Dissipation 25 Energy Generation 15 Energy Capacity 250 Matter Stores 300 Matter Capacity 300 Sight Range 16 Terrain Scan Density 10 Evasion (%) 55 Recoil Reduction 1 Offensive Hacking 10 Item Schematics ----------------- None Robot Schematics ------------------ None Fabricated ------------ Nothing Alien Tech Used ----------------- None Achievements -------------- None Challenges ------------ None Game ------ Seed SubdwellerAluminumStorm Manual? 0 Play Time 00:40:03 Cumulative 23.8 hours Start 2024.04.20 @ 00:22:11 End 2024.04.20 @ 01:04:43 Sessions 1 Manual Loads 0 Difficulty Rogue Special Mode None Game No. 25 Rogue 25 Adventurer 0 Explorer 0 Win Type - Total 0 Types 0/0/0/0/0/0/0/0/0 Lore% 15 Gallery% 22 Achievement% 100 Wizard Run 0 Options --------- Layout 1 ASCII 0 Keyboard 0 Movement Mouse Keybinds 0 Fullscreen 1 Font 24/Smallcaps Map View 50x35 Zoom Use 0% Tactical HUD 0 Map Filters NONE Filters NONE Steam 1 RUN: f8e31696-724e-47e1-8988-1730fc1bbcc5